bitfinex/quotes_BTCUSD_20240823
["timestamp","ask_amount","ask_price","bid_price","bid_amount"]
[1724380223348,1.78705562,60880.0,60879.0,0.00285039]
[1724380224519,1.62307684,60880.0,60879.0,0.00285039]
[1724380227797,1.53897684,60880.0,60879.0,0.00285039]
[1724380228046,1.47767684,60880.0,60879.0,0.00285039]
[1724380229129,1.47967684,60880.0,60879.0,0.00285039]
[1724380232347,1.47567684,60880.0,60879.0,0.00285039]
[1724380232511,0.90557921,60880.0,60879.0,0.08125039]
[1724380232726,0.29437348,60880.0,60879.0,0.14355039]
[1724380232932,0.14643158,60880.0,60879.0,0.14355039]
[1724380233154,0.024824,60880.0,60879.0,0.14355039]
[1724380233377,0.024824,60880.0,60879.0,0.30781039]
[1724380233964,0.012824,60880.0,60879.0,0.30681039]
[1724380234164,0.002824,60880.0,60879.0,0.96285039]
[1724380234377,0.003824,60880.0,60879.0,0.96285039]
[1724380235408,0.003824,60880.0,60879.0,0.63433039]
[1724380247442,0.001824,60880.0,60879.0,0.63433039]
[1724380248178,0.002824,60880.0,60879.0,0.64033039]
[1724380248377,0.001824,60880.0,60879.0,0.64033039]
[1724380249127,0.002824,60880.0,60879.0,0.64733039]
[1724380249559,0.001824,60880.0,60879.0,0.64133039]
[1724380250049,0.002824,60880.0,60879.0,0.65033039]
[1724380254638,0.02858889,60880.0,60879.0,0.65033039]
[1724380255048,0.02858889,60880.0,60879.0,0.67891939]
[1724380255263,0.02858889,60880.0,60879.0,0.35039939]
[1724380255876,0.02858889,60880.0,60879.0,0.67891939]
[1724380256922,0.02858889,60880.0,60879.0,0.35039939]
[1724380257322,0.02858889,60880.0,60879.0,0.12383939]
[1724380257323,0.19259187,60880.0,60879.0,0.12383939]
[1724380257928,0.35684887,60880.0,60879.0,0.01685039]
[1724380258110,1.33839196,60880.0,60879.0,0.01685039]
[1724380258315,1.33839196,60880.0,60879.0,0.00985039]
[1724380258316,1.25397887,60880.0,60879.0,0.00985039]
[1724380258529,0.92546387,60880.0,60879.0,0.00985039]
[1724380258728,0.92546387,60880.0,60879.0,0.00485039]
[1724380258729,0.43169187,60880.0,60879.0,0.00485039]
[1724380258956,0.5101359,60880.0,60879.0,0.00485039]
[1724380259177,0.6743929,60880.0,60879.0,0.00785039]
[1724380259636,0.6743929,60880.0,60879.0,0.00385039]
[1724380260236,0.6743929,60880.0,60879.0,0.00085039]
[1724380260385,0.6743929,60880.0,60879.0,0.00185039]
[1724380260587,0.53094887,60880.0,60879.0,0.00185039]
[1724380261000,0.53494887,60880.0,60879.0,0.00185039]
[1724380261299,0.53094887,60880.0,60879.0,0.00185039]
[1724380261725,0.54094887,60880.0,60879.0,0.00285039]
[1724380261924,0.37669187,60880.0,60879.0,0.00285039]
[1724380262136,0.31459187,60880.0,60879.0,0.00285039]
[1724380262520,0.30059187,60880.0,60879.0,0.00185039]
[1724380262730,0.31059187,60880.0,60879.0,0.00285039]
[1724380268590,0.47484887,60880.0,60879.0,0.00285039]
[1724380268837,0.55324887,60880.0,60879.0,0.00285039]
[1724380269010,1.7993757,60880.0,60879.0,0.00285039]
[1724380269187,1.8013757,60880.0,60879.0,0.00285039]
[1724380269707,1.87502384,60880.0,60879.0,0.00285039]
[1724380269919,1.8033757,60880.0,60879.0,0.00285039]
[1724380270122,1.96735448,60880.0,60879.0,0.00285039]
[1724380270322,2.09013136,60880.0,60879.0,0.00285039]
[1724380270524,1.96735448,60880.0,60879.0,0.00285039]
[1724380270729,1.97265266,60880.0,60879.0,0.00285039]
[1724380271053,1.97265266,60880.0,60855.0,0.006585]
[1724380271054,0.001,60867.0,60855.0,0.006585]
[1724380271255,0.640518,60862.0,60851.0,0.1442]
[1724380271461,0.80452098,60862.0,60852.0,0.006585]
[1724380271667,0.90452098,60862.0,60852.0,0.006585]
[1724380271817,0.93029703,60862.0,60852.0,0.006585]
[1724380272243,0.93029703,60862.0,60851.0,0.1442]
[1724380272244,0.93029703,60862.0,60861.0,0.0019053]
[1724380272596,0.84889703,60862.0,60861.0,0.0019053]
[1724380272800,0.84989703,60862.0,60861.0,0.0019053]
[1724380273628,0.84989703,60862.0,60861.0,0.0009053]
[1724380280250,1.17850903,60862.0,60861.0,0.0009053]
[1724380293515,1.50712103,60862.0,60861.0,0.0009053]
[1724380293957,1.58542103,60862.0,60861.0,0.0009053]
[1724380294573,1.66397152,60862.0,60861.0,0.0009053]
[1724380294905,1.66297152,60862.0,60861.0,0.0009053]
[1724380295103,1.8269503,60862.0,60861.0,0.0009053]
[1724380295334,1.8409503,60862.0,60861.0,0.0009053]
[1724380296087,1.8429503,60862.0,60861.0,0.0009053]
[1724380296495,1.8289503,60862.0,60861.0,0.0009053]
[1724380296728,1.8429503,60862.0,60861.0,0.0009053]
[1724380297312,1.8569503,60862.0,60861.0,0.0009053]
[1724380301401,1.90591416,60862.0,60861.0,0.0009053]
[1724380302396,1.8569503,60862.0,60861.0,0.0009053]
[1724380303153,1.8569503,60862.0,60839.0,0.0667643]
[1724380303154,1.215069,60850.0,60839.0,0.0009053]
[1724380303354,1.38107198,60850.0,60843.0,0.0758]
[1724380303535,1.53014613,60850.0,60843.0,0.0758]
[1724380304009,1.50685442,60850.0,60843.0,0.0758]
[1724380304206,1.58245897,60850.0,60839.0,0.0009053]
[1724380304356,1.61299383,60850.0,60840.0,0.0758]
[1724380304565,1.81546358,60850.0,60840.0,0.0758]
[1724380304741,1.80943087,60850.0,60840.0,0.0758]
[1724380305157,1.94886688,60850.0,60840.0,0.0758]
[1724380306026,1.94286688,60850.0,60840.0,0.0758]
[1724380306265,1.94686688,60850.0,60840.0,0.0758]
[1724380306419,1.75835726,60850.0,60840.0,0.0758]
[1724380306596,1.76635726,60850.0,60846.0,0.0794]
[1724380307013,1.72263649,60850.0,60846.0,0.0794]
[1724380308363,1.72663649,60850.0,60846.0,0.0794]
[1724380309143,1.77567187,60850.0,60846.0,0.0794]
[1724380309751,1.88398353,60850.0,60846.0,0.0794]
[1724380310285,1.88398353,60850.0,60843.0,0.0802]
[1724380310286,1.93301892,60850.0,60843.0,0.0802]
[1724380312476,1.83494815,60850.0,60843.0,0.0802]
[1724380314158,1.95761111,60850.0,60843.0,0.0802]
[1724380314401,1.72663649,60850.0,60843.0,0.0802]
[1724380314941,1.72663649,60850.0,60841.0,0.0825]
[1724380315801,2.13031349,60850.0,60839.0,0.0009053]
[1724380316334,2.2775234,60850.0,60839.0,0.0009053]
[1724380316501,2.12231349,60850.0,60839.0,0.0009053]
[1724380316736,2.11431349,60850.0,60839.0,0.0009053]
[1724380316939,2.29229227,60850.0,60839.0,0.0009053]
[1724380317087,1.484069,60849.0,60839.0,0.0009053]
[1724380317286,0.167365,60840.0,60839.0,0.0009053]
[1724380317488,0.91060586,60840.0,60839.0,0.0009053]
[1724380317935,0.81376123,60840.0,60839.0,0.0009053]
[1724380318170,1.80195423,60840.0,60839.0,0.0009053]
[1724380318363,1.92455879,60840.0,60839.0,0.0009053]
[1724380319311,1.80195423,60840.0,60839.0,0.00050464]
[1724380319796,1.93555879,60840.0,60839.0,0.00050464]
[1724380320003,1.95155879,60840.0,60839.0,0.00050464]
[1724380321079,1.94755879,60840.0,60839.0,0.00050464]
[1724380321302,1.93262229,60840.0,60839.0,0.00050464]
[1724380321544,1.84942229,60840.0,60839.0,0.00050464]
[1724380321778,1.80035621,60840.0,60839.0,0.00050464]
[1724380322049,1.80035684,60840.0,60839.0,0.00050464]
[1724380322258,1.89093909,60840.0,60839.0,0.00050464]
[1724380322671,1.89293909,60840.0,60839.0,0.00050464]
[1724380323103,1.89493909,60840.0,60839.0,0.00050464]
[1724380323308,1.97223909,60840.0,60839.0,0.00050464]
[1724380323717,2.00340367,60840.0,60839.0,0.00050464]
[1724380323933,1.97761458,60840.0,60839.0,0.00050464]
[1724380324167,2.30634558,60840.0,60839.0,0.00050464]
[1724380325574,1.88203233,60840.0,60839.0,0.00050464]
[1724380325732,1.18761606,60840.0,60839.0,0.00050464]
[1724380325931,1.13861698,60840.0,60839.0,0.00050464]
[1724380326173,1.46734798,60840.0,60839.0,0.00050464]
[1724380326372,1.51634728,60840.0,60839.0,0.00050464]
[1724380327572,1.46734798,60840.0,60839.0,0.00050464]
[1724380327701,1.13861698,60840.0,60839.0,0.00050464]
[1724380330099,1.63232676,60840.0,60839.0,0.00050464]
[1724380330327,1.68332758,60840.0,60839.0,0.00050464]
[1724380330781,1.68432758,60840.0,60839.0,0.00050464]
[1724380330984,1.88113428,60840.0,60839.0,0.00050464]
[1724380331185,2.11185776,60840.0,60839.0,0.00050464]
[1724380331390,2.43083691,60840.0,60839.0,0.00050464]
[1724380331517,2.23436716,60840.0,60839.0,0.00050464]
[1724380331722,2.11185776,60840.0,60839.0,0.00050464]
[1724380333966,2.30832751,60840.0,60839.0,0.00050464]
[1724380334164,1.35027275,60827.0,60826.0,0.0757]
[1724380334336,1.61127573,60827.0,60826.0,0.0757]
[1724380334972,1.63706675,60827.0,60826.0,0.0757]
[1724380335724,1.64206675,60827.0,60826.0,0.0757]
[1724380336338,1.31326575,60827.0,60826.0,0.0757]
[1724380336547,1.31826575,60827.0,60826.0,0.0757]
[1724380340656,0.82203,60825.0,60824.0,0.0759064]
[1724380340864,1.08603298,60825.0,60824.0,0.0759064]
[1724380341835,1.08803298,60825.0,60824.0,0.0759064]
[1724380342040,1.41684498,60825.0,60824.0,0.0009064]
[1724380342255,1.64192376,60825.0,60824.0,0.0009064]
[1724380342455,1.58082376,60825.0,60824.0,0.0009064]
[1724380342684,1.41684498,60825.0,60824.0,0.0838064]
[1724380343060,1.41984498,60825.0,60824.0,0.0838064]
[1724380344969,1.41984498,60825.0,60824.0,0.1449064]
[1724380345850,1.09103298,60825.0,60824.0,0.1449064]
[1724380347515,0.76222098,60825.0,60824.0,0.1449064]
[1724380350100,0.26900298,60825.0,60824.0,0.1449064]
[1724380351074,0.26860732,60825.0,60824.0,0.1449064]
[1724380356999,0.26943132,60825.0,60824.0,0.1449064]
[1724380362037,0.26943132,60825.0,60824.0,0.1331464]
[1724380367386,0.105824,60825.0,60824.0,0.1331464]
[1724380367612,0.005824,60825.0,60824.0,0.1331464]
[1724380369294,0.005824,60825.0,60824.0,0.1340528]
[1724380370714,0.105824,60825.0,60824.0,0.1340528]
[1724380374719,0.005824,60825.0,60824.0,0.1340528]
[1724380380575,0.05498706,60825.0,60824.0,0.1340528]
[1724380381156,0.15498706,60825.0,60824.0,0.1340528]
[1724380385607,0.105824,60825.0,60824.0,0.1340528]
[1724380387665,0.26982698,60825.0,60824.0,0.0729528]
[1724380387880,0.34357158,60825.0,60824.0,0.0729528]
[1724380388079,0.50797758,60825.0,60824.0,0.0729528]
[1724380388457,0.43423298,60825.0,60824.0,0.0729528]
[1724380388622,0.26982698,60825.0,60824.0,0.0729528]
[1724380389498,0.3682345,60825.0,60824.0,0.0729528]
[1724380389724,1.15285698,60825.0,60824.0,0.0009064]
[1724380389922,1.22815698,60825.0,60824.0,0.0009064]
[1724380390560,1.63994799,60825.0,60824.0,0.0009064]
[1724380391081,1.55696898,60825.0,60824.0,0.0009064]
[1724380392907,1.22815698,60825.0,60824.0,0.00048136]
[1724380393097,1.15285698,60825.0,60824.0,0.00048136]
[1724380393297,1.23146804,60825.0,60824.0,0.00048136]
[1724380395758,0.43423298,60825.0,60824.0,0.00048136]
[1724380395960,0.63586023,60825.0,60824.0,0.00048136]
[1724380397015,0.96467223,60825.0,60824.0,0.00048136]
[1724380397211,0.84165604,60825.0,60824.0,0.00048136]
[1724380398205,0.90545604,60825.0,60824.0,0.00048136]
[1724380399684,1.02846998,60825.0,60824.0,0.00048136]
[1724380400057,1.35728198,60825.0,60824.0,0.00048136]
[1724380400266,1.26006109,60825.0,60824.0,0.00048136]
[1724380402181,1.34116109,60825.0,60824.0,0.00048136]
[1724380403767,1.66997309,60825.0,60824.0,0.00048136]
[1724380404617,1.66955722,60825.0,60824.0,0.00048136]
[1724380405182,1.67498523,60825.0,60824.0,0.00048136]
[1724380406610,1.79798782,60825.0,60824.0,0.00048136]
[1724380409075,1.67498523,60825.0,60824.0,0.00048136]
[1724380412696,1.25964522,60825.0,60824.0,0.00048136]
[1724380412898,1.19584522,60825.0,60824.0,0.00048136]
[1724380413103,0.66119613,60825.0,60824.0,0.00048136]
[1724380413509,0.49679013,60825.0,60824.0,0.07678136]
[1724380413710,0.66119613,60825.0,60824.0,0.07678136]
[1724380413883,0.53822122,60825.0,60824.0,0.07678136]
[1724380414084,0.29520416,60825.0,60824.0,0.07678136]
[1724380414340,0.29520416,60825.0,60824.0,0.14188136]
[1724380415433,0.36900139,60825.0,60824.0,0.14188136]
[1724380415630,0.29520416,60825.0,60824.0,0.14188136]
[1724380422408,0.3444057,60825.0,60824.0,0.14188136]
[1724380424578,0.31861265,60825.0,60824.0,0.14188136]
[1724380427927,0.26941111,60825.0,60824.0,0.14188136]
[1724380429201,0.26898928,60825.0,60824.0,0.14188136]
[1724380434119,0.26865221,60825.0,60824.0,0.14188136]
[1724380434522,0.29444285,60825.0,60824.0,0.14188136]
[1724380442345,0.29444285,60825.0,60824.0,0.07678136]
[1724380446568,0.13043987,60825.0,60824.0,0.07678136]
[1724380446774,0.03043987,60825.0,60824.0,0.13908136]
[1724380448178,0.10905093,60825.0,60824.0,0.00048136]
[1724380448380,0.25827206,60825.0,60824.0,0.00048136]
[1724380449532,0.58668104,60825.0,60824.0,0.00048136]
[1724380449729,1.47383369,60825.0,60824.0,0.00048136]
[1724380449934,1.66689591,60825.0,60824.0,0.00048136]
[1724380452316,1.67218604,60825.0,60824.0,0.00048136]
[1724380455673,1.25947285,60825.0,60824.0,0.00048136]
[1724380455824,1.37877158,60825.0,60824.0,0.00048136]
[1724380456027,1.35419392,60825.0,60824.0,0.00048136]
[1724380456830,1.25588391,60825.0,60824.0,0.00048136]
[1724380457695,1.37877158,60825.0,60824.0,0.00048136]
[1724380458041,1.35418474,60825.0,60824.0,0.00048136]
[1724380458684,1.37877158,60825.0,60824.0,0.00048136]
[1724380459023,1.25588391,60825.0,60824.0,0.00048136]
[1724380459843,0.86627191,60825.0,60824.0,0.00048136]
[1724380463416,0.94637191,60825.0,60824.0,0.00048136]
[1724380467298,1.27518391,60825.0,60824.0,0.00048136]
[1724380468018,0.86627191,60825.0,60824.0,0.00048136]
[1724380468218,1.19508391,60825.0,60824.0,0.00048136]
[1724380468670,1.31793965,60825.0,60824.0,0.00048136]
[1724380469380,0.98912765,60825.0,60824.0,0.00048136]
[1724380475714,0.98873608,60825.0,60824.0,0.00048136]
[1724380477905,0.91012502,60825.0,60824.0,0.00048136]
[1724380478113,0.53706834,60825.0,60824.0,0.07758136]
[1724380478773,0.86588034,60825.0,60824.0,0.07758136]
[1724380478969,0.96416645,60825.0,60824.0,0.07758136]
[1724380479310,0.86588034,60825.0,60824.0,0.07758136]
[1724380482136,0.39235241,60825.0,60824.0,0.07758136]
[1724380482364,0.34320663,60825.0,60824.0,0.13838136]
[1724380483165,0.29361762,60825.0,60824.0,0.13838136]
[1724380483355,0.34277297,60825.0,60824.0,0.13838136]
[1724380483563,0.29261762,60825.0,60824.0,0.13838136]
[1724380483943,0.29061762,60825.0,60824.0,0.13838136]
[1724380484311,0.36922868,60825.0,60824.0,0.07758136]
[1724380484512,0.41838543,60825.0,60824.0,0.07758136]
[1724380485535,0.41838543,60825.0,60824.0,0.00048136]
[1724380486998,0.42038543,60825.0,60824.0,0.00048136]
[1724380487195,0.42038543,60825.0,60824.0,0.08238136]
[1724380487398,0.42138543,60825.0,60824.0,0.08238136]
[1724380494011,0.48728543,60825.0,60824.0,0.00048136]
[1724380494235,1.26015868,60825.0,60824.0,0.00048136]
[1724380494522,1.26798906,60825.0,60824.0,0.00048136]
[1724380495106,1.19425868,60825.0,60824.0,0.00048136]
[1724380496025,0.45802362,60825.0,60824.0,0.07778136]
[1724380496610,0.53175731,60825.0,60824.0,0.07778136]
[1724380498967,0.45802362,60825.0,60824.0,0.07778136]
[1724380499185,0.53176229,60825.0,60824.0,0.07778136]
[1724380499611,0.45802362,60825.0,60824.0,0.07778136]
[1724380500145,0.53176464,60825.0,60824.0,0.07778136]
[1724380500357,0.45802362,60825.0,60824.0,0.07778136]
[1724380502308,0.53178306,60825.0,60824.0,0.07778136]
[1724380504760,0.36737706,60825.0,60824.0,0.07778136]
[1724380505162,0.17878031,60825.0,60824.0,0.13858136]
[1724380505716,0.07878031,60825.0,60824.0,0.13858136]
[1724380505921,0.07778031,60825.0,60824.0,0.13858136]
[1724380506376,0.07878031,60825.0,60824.0,0.13858136]
[1724380506566,0.02761464,60825.0,60824.0,0.13858136]
[1724380506770,0.02961464,60825.0,60824.0,0.13858136]
[1724380507153,0.02761464,60825.0,60824.0,0.13858136]
[1724380507686,0.02661464,60825.0,60824.0,0.13858136]
[1724380509116,0.02661464,60825.0,60824.0,0.30627715]
[1724380509318,0.02661464,60825.0,60824.0,0.63180636]
[1724380509926,0.02661464,60825.0,60824.0,0.98362336]
[1724380510678,0.02761464,60825.0,60824.0,0.98362336]
[1724380511063,0.02861464,60825.0,60824.0,0.98462336]
[1724380511464,0.02761464,60825.0,60824.0,0.98362336]
[1724380511887,0.02861464,60825.0,60824.0,1.31344036]
[1724380513472,0.02761464,60825.0,60824.0,1.31244036]
[1724380513791,0.02661464,60825.0,60824.0,1.31244036]
[1724380514347,0.02861464,60825.0,60824.0,1.31344036]
[1724380514563,0.02861464,60825.0,60824.0,1.31439568]
[1724380514769,0.02761464,60825.0,60824.0,1.31339568]
[1724380515273,0.02861464,60825.0,60824.0,1.31444036]
[1724380515861,0.02861464,60825.0,60824.0,1.31639568]
[1724380516096,0.02861464,60825.0,60824.0,1.31835493]
[1724380516534,0.02861464,60825.0,60824.0,1.31639568]
[1724380516925,0.02761464,60825.0,60824.0,1.31444036]
[1724380517148,0.02661464,60825.0,60824.0,1.31344036]
[1724380517375,0.02761464,60825.0,60824.0,1.33844036]
[1724380517491,0.02861464,60825.0,60824.0,1.33844036]
[1724380517695,0.02861464,60825.0,60824.0,1.33744036]
[1724380518487,0.02761464,60825.0,60824.0,1.32644036]
[1724380518963,0.02861464,60825.0,60824.0,1.00862336]
[1724380519562,0.02761464,60825.0,60824.0,0.99462336]
[1724380519800,0.02861464,60825.0,60824.0,1.00562336]
[1724380521619,0.02861464,60825.0,60824.0,0.16388136]
[1724380522546,0.02761464,60825.0,60824.0,0.15288136]
[1724380523007,0.02861464,60825.0,60824.0,0.15988136]
[1724380523204,0.02661464,60825.0,60824.0,0.14188136]
[1724380523616,0.02861464,60825.0,60824.0,0.15588136]
[1724380524113,0.02761464,60825.0,60824.0,0.14888136]
[1724380524471,0.02861464,60825.0,60824.0,0.15588136]
[1724380524969,0.02861464,60825.0,60824.0,0.32028936]
[1724380525178,0.02861464,60825.0,60824.0,0.64910636]
[1724380526679,0.02761464,60825.0,60824.0,0.64210636]
[1724380527104,0.02961464,60825.0,60824.0,0.65810636]
[1724380528249,0.02861464,60825.0,60824.0,0.65010636]
[1724380528911,0.02661464,60825.0,60824.0,0.63510636]
[1724380530042,0.02761464,60825.0,60824.0,0.64410636]
[1724380532899,0.02761464,60825.0,60824.0,0.70998136]
[1724380534189,0.02761464,60825.0,60824.0,0.38116436]
[1724380535328,0.02761464,60825.0,60824.0,0.70998136]
[1724380546301,0.02761464,60825.0,60824.0,0.64758136]
[1724380555045,0.02761464,60825.0,60824.0,0.31876436]
[1724380556200,0.02761464,60825.0,60824.0,0.07535636]
[1724380556624,0.49992362,60825.0,60824.0,0.00948136]
[1724380557232,0.82873562,60825.0,60824.0,0.00948136]
[1724380557525,0.49992362,60825.0,60824.0,0.00948136]
[1724380557740,0.49892362,60825.0,60824.0,0.00048136]
[1724380558138,0.49892362,60825.0,60824.0,0.00248136]
[1724380563856,1.23515868,60825.0,60824.0,0.00248136]
[1724380564055,1.33515868,60825.0,60824.0,0.00248136]
[1724380564322,1.38429425,60825.0,60824.0,0.00248136]
[1724380564525,1.33515868,60825.0,60824.0,0.00248136]
[1724380564703,1.40888231,60825.0,60824.0,0.00248136]
[1724380565291,1.38428529,60825.0,60824.0,0.00248136]
[1724380565470,1.33515868,60825.0,60824.0,0.00248136]
[1724380566320,1.38427861,60825.0,60824.0,0.00248136]
[1724380567334,1.38428022,60825.0,60824.0,0.00248136]
[1724380568306,1.33515868,60825.0,60824.0,0.00248136]
[1724380572658,1.00634668,60825.0,60824.0,0.00248136]
[1724380573990,0.92773562,60825.0,60824.0,0.00248136]
[1724380577591,0.92773562,60825.0,60824.0,0.14608136]
[1724380577592,0.29061762,60825.0,60824.0,0.14608136]
[1724380579047,0.12661464,60825.0,60824.0,0.14608136]
[1724380579239,0.02661464,60825.0,60824.0,0.14608136]
[1724380581243,0.08711464,60825.0,60824.0,0.00248136]
[1724380581442,0.02661464,60825.0,60824.0,0.00248136]
[1724380582738,0.02621889,60825.0,60824.0,0.00248136]
[1724380588009,0.02621889,60825.0,60824.0,0.08518136]
[1724380591395,0.02621889,60825.0,60824.0,0.39308836]
[1724380591726,0.02621889,60825.0,60824.0,0.38980042]
[1724380592325,0.02621889,60825.0,60824.0,0.71861742]
[1724380592538,0.02621889,60825.0,60824.0,0.73664118]
[1724380595130,0.02621889,60825.0,60824.0,1.06545818]
[1724380595359,0.02621889,60825.0,60824.0,1.08845818]
[1724380596017,0.02621889,60825.0,60824.0,1.08645818]
[1724380596417,0.02821889,60825.0,60824.0,1.10045818]
[1724380597042,0.02821889,60825.0,60824.0,1.08243442]
[1724380597242,0.02821889,60825.0,60824.0,1.1004574]
[1724380598987,0.02821889,60825.0,60824.0,1.4292744]
[1724380599638,0.02821889,60825.0,60824.0,1.1004574]
[1724380600040,0.02821889,60825.0,60824.0,1.08243442]
[1724380600242,0.02821889,60825.0,60824.0,1.10045723]
[1724380600507,0.02721889,60825.0,60824.0,1.42127423]
[1724380600680,0.02721889,60825.0,60824.0,1.10045723]
[1724380600884,0.02821889,60825.0,60824.0,1.42927423]
[1724380601085,0.02821889,60825.0,60824.0,1.10045723]
[1724380601811,0.02821889,60825.0,60824.0,1.42927423]
[1724380602278,0.02721889,60825.0,60824.0,1.42327423]
[1724380602501,0.02621889,60825.0,60824.0,1.41527423]
[1724380602648,0.02721889,60825.0,60824.0,1.42827423]
[1724380602862,0.02721889,60825.0,60824.0,1.42927423]
[1724380603226,0.02721889,60825.0,60824.0,1.41125142]
[1724380603431,0.02721889,60825.0,60824.0,1.42927423]
[1724380603839,0.02721889,60825.0,60824.0,1.44327423]
[1724380605674,0.02721889,60825.0,60824.0,1.50914323]
[1724380606891,0.02721889,60825.0,60824.0,1.50914304]
[1724380609785,0.02721889,60825.0,60824.0,1.49212042]
[1724380610097,0.02721889,60825.0,60824.0,1.51014295]
[1724380611964,0.02721889,60825.0,60824.0,1.67610125]
[1724380612185,0.02721889,60825.0,60824.0,1.6780605]
[1724380612610,0.02721889,60825.0,60824.0,1.66003797]
[1724380613303,0.02721889,60825.0,60824.0,1.98885497]
[1724380613505,0.02721889,60825.0,60824.0,2.01457738]
[1724380615708,0.02721889,60825.0,60824.0,2.00687507]
[1724380616337,0.02721889,60825.0,60824.0,1.98885497]
[1724380616540,0.02721889,60825.0,60824.0,2.00687534]
[1724380616784,0.02721889,60825.0,60824.0,1.98885497]
[1724380617008,0.02721889,60825.0,60824.0,2.00687535]
[1724380617449,0.02721889,60825.0,60824.0,2.03259793]
[1724380619372,0.02721889,60825.0,60824.0,2.0449447]
[1724380619574,0.02721889,60825.0,60824.0,1.98885497]
[1724380619781,0.02721889,60825.0,60824.0,2.04494442]
[1724380620491,0.02721889,60825.0,60824.0,2.04102985]
[1724380620692,0.02721889,60825.0,60824.0,1.71221285]
[1724380621525,0.02721889,60825.0,60824.0,2.04102985]
[1724380621915,0.02721889,60825.0,60824.0,2.00296072]
[1724380622126,0.02721889,60825.0,60824.0,1.71221317]
[1724380622332,0.02721889,60825.0,60824.0,2.04103017]
[1724380622575,0.02721889,60825.0,60824.0,1.71221317]
[1724380622791,0.02721889,60825.0,60824.0,1.63360211]
[1724380623000,0.02721889,60825.0,60824.0,1.71221317]
[1724380623272,0.02721889,60825.0,60824.0,1.67414372]
[1724380625959,0.02721889,60825.0,60824.0,1.67414471]
[1724380626180,0.02721889,60825.0,60824.0,1.69986844]
[1724380626333,0.02721889,60825.0,60824.0,1.67414471]
[1724380628758,0.02721889,60825.0,60824.0,1.6561234]
[1724380628962,0.02721889,60825.0,60824.0,1.6741441]
[1724380632122,0.02721889,60825.0,60824.0,1.67414394]
[1724380632321,0.02721889,60825.0,60824.0,2.00296094]
[1724380632527,0.02721889,60825.0,60824.0,1.77414394]
[1724380634547,0.02721889,60825.0,60824.0,2.10296094]
[1724380635107,0.02721889,60825.0,60824.0,2.10491626]
[1724380635407,0.02721889,60825.0,60824.0,2.09091626]
[1724380635751,0.02821889,60825.0,60824.0,2.1049157]
[1724380636100,0.02721889,60825.0,60824.0,2.0909157]
[1724380636322,0.02821889,60825.0,60824.0,2.10296038]
[1724380637474,0.02821889,60825.0,60824.0,1.77414338]
[1724380637928,0.02821889,60825.0,60824.0,1.7561234]
[1724380643795,0.02821889,60825.0,60824.0,2.12073635]
[1724380647941,0.02821889,60825.0,60824.0,1.7561234]
[1724380648762,0.02821889,60825.0,60824.0,2.12073635]
[1724380652633,0.02821889,60825.0,60824.0,1.7561234]
[1724380652831,0.02821889,60825.0,60824.0,2.12073638]
[1724380654617,0.02821889,60825.0,60824.0,2.05913638]
[1724380655418,0.09481889,60825.0,60824.0,1.60982234]
[1724380655639,0.17811889,60825.0,60824.0,0.14370372]
[1724380655880,0.17811889,60825.0,60824.0,0.09435036]
[1724380656512,0.17611889,60825.0,60824.0,0.06635036]
[1724380657025,0.17811889,60825.0,60824.0,0.09435036]
[1724380657267,0.17811889,60825.0,60824.0,0.08035036]
[1724380657268,0.17711889,60825.0,60824.0,0.08035036]
[1724380657478,0.17711889,60825.0,60824.0,0.01348136]
[1724380658194,0.17811889,60825.0,60824.0,0.02748136]
[1724380661822,0.17811889,60825.0,60824.0,0.05048136]
[1724380662185,0.17811889,60825.0,60824.0,0.54370636]
[1724380662755,0.09481889,60825.0,60824.0,0.54370636]
[1724380676449,0.02821889,60825.0,60824.0,1.28074036]
[1724380677137,0.02821889,60825.0,60824.0,1.20134036]
[1724380677662,0.09211889,60825.0,60824.0,0.54370636]
[1724380683124,0.02821889,60825.0,60824.0,0.87252336]
[1724380683300,0.02821889,60825.0,60824.0,0.94962336]
[1724380683544,0.00242825,60825.0,60824.0,1.27844036]
[1724380685343,0.02821438,60825.0,60824.0,1.27844036]
[1724380688107,0.02821438,60825.0,60824.0,1.44344334]
[1724380688443,0.02821438,60825.0,60824.0,1.50994334]
[1724380690098,0.02821438,60825.0,60824.0,1.59723444]
[1724380690316,0.02821438,60825.0,60824.0,1.59723407]
[1724380691240,0.02821438,60825.0,60824.0,1.54801372]
[1724380691556,0.02821438,60825.0,60824.0,1.59725561]
[1724380691758,0.02821438,60825.0,60824.0,1.87878604]
[1724380691937,0.02821438,60825.0,60824.0,1.88074529]
[1724380692992,0.02821438,60825.0,60824.0,2.31919225]
[1724380693599,0.02821438,60825.0,60824.0,2.31919117]
[1724380693751,0.02721438,60825.0,60824.0,2.30619117]
[1724380693952,0.02621438,60825.0,60824.0,2.29219117]
[1724380694335,0.02821438,60825.0,60824.0,2.32019117]
[1724380695408,0.02821438,60825.0,60824.0,2.3162766]
[1724380695616,0.02821438,60825.0,60824.0,1.59825771]
[1724380695811,0.02821438,60825.0,60824.0,1.51094334]
[1724380695966,0.02781863,60825.0,60824.0,1.51094334]
[1724380696167,0.02781863,60825.0,60824.0,1.44444334]
[1724380696371,0.02781863,60825.0,60824.0,1.5220544]
[1724380697109,0.02781863,60825.0,60824.0,1.5230544]
[1724380700924,0.02781863,60825.0,60824.0,1.4449544]
[1724380701151,0.08781863,60825.0,60824.0,1.28095142]
[1724380702404,0.02781863,60825.0,60824.0,1.28095142]
[1724380706236,0.02781863,60825.0,60824.0,1.33022291]
[1724380706673,0.02781863,60825.0,60824.0,1.28095142]
[1724380708322,0.02781863,60825.0,60824.0,1.33022291]
[1724380708532,0.02781863,60825.0,60824.0,1.33024015]
[1724380709427,0.02781863,60825.0,60824.0,1.33024153]
[1724380713187,0.02781863,60825.0,60824.0,1.28095142]
[1724380713395,0.02781863,60825.0,60824.0,1.3302477]
[1724380716249,0.02781863,60825.0,60824.0,1.28095142]
[1724380716903,0.02781863,60825.0,60824.0,1.33025692]
[1724380717103,0.02781863,60825.0,60824.0,1.28095142]
[1724380719403,0.10421863,60825.0,60824.0,0.54470636]
[1724380719606,0.16951863,60825.0,60824.0,0.21588936]
[1724380719802,0.16951863,60825.0,60824.0,0.23391239]
[1724380720014,0.16951863,60825.0,60824.0,0.56272939]
[1724380723251,0.16951863,60825.0,60824.0,0.54470636]
[1724380723427,0.16951863,60825.0,60824.0,0.5627291]
[1724380723867,0.16951863,60825.0,60824.0,0.8915461]
[1724380724073,0.02781863,60825.0,60824.0,0.9723461]
[1724380725084,0.02781863,60825.0,60824.0,0.95432336]
[1724380725290,0.02781863,60825.0,60824.0,0.87352336]
[1724380726941,0.02781863,60825.0,60824.0,0.92283976]
[1724380727166,0.02781863,60825.0,60824.0,0.87352336]
[1724380729204,0.02781863,60825.0,60824.0,0.94751151]
[1724380733337,0.02781863,60825.0,60824.0,1.27632851]
[1724380737149,0.02781863,60825.0,60824.0,1.27634097]
[1724380738115,0.02781863,60825.0,60824.0,1.64099277]
[1724380741242,0.02781863,60825.0,60824.0,1.56699216]
[1724380742482,0.02781863,60825.0,60824.0,1.20234036]
[1724380743570,0.02781863,60825.0,60824.0,1.27636527]